bitfinex-derivatives/quotes_SOLF0:USTF0_20250716
["timestamp","ask_amount","ask_price","bid_price","bid_amount"]
[1752685257616,203.90599911,172.67,172.66,0.44447712]
[1752685259112,191.3687,172.67,172.66,0.44447712]
[1752685259314,185.68,172.68,172.66,0.44447712]
[1752685259521,12.95481111,172.67,172.66,0.44447712]
[1752685259910,185.68,172.68,172.66,0.44447712]
[1752685260510,5.7887,172.67,172.66,0.44447712]
[1752685261113,18.32599911,172.67,172.66,0.44447712]
[1752685261317,18.32599911,172.67,172.66,0.11246975]
[1752685261817,201.62293241,172.68,172.67,13.71630089]
[1752685262015,198.21729911,172.68,172.67,13.71630089]
[1752685262319,204.00569911,172.68,172.67,13.71630089]
[1752685262518,191.4684,172.68,172.67,13.71630089]
[1752685262716,191.7884,172.68,172.67,13.71630089]
[1752685263114,12.53729911,172.69,172.67,13.71630089]
[1752685263321,185.82,172.68,172.67,13.71630089]
[1752685263918,191.6084,172.68,172.67,13.71630089]
[1752685264220,516.04293241,172.71,172.67,13.71630089]
[1752685264429,516.04293241,172.71,172.68,3.18]
[1752685264430,12.92784752,172.69,172.68,3.18]
[1752685264611,500.1,172.71,172.7,3.18]
[1752685264612,513.02784752,172.71,172.7,3.18]
[1752685264811,500.1,172.71,172.7,3.18]
[1752685265023,185.78,172.71,172.7,3.18]
[1752685265226,198.70784752,172.71,172.68,3.18]
[1752685265420,12.92609431,172.7,172.68,3.18]
[1752685265923,12.92609431,172.7,172.67,13.71630089]
[1752685266120,198.70609431,172.71,172.7,3.18]
[1752685266424,185.66117817,172.71,172.7,3.18]
[1752685267115,204.37477248,172.71,172.69,3.18]
[1752685267320,185.66117817,172.71,172.69,0.80576638]
[1752685267516,185.66117817,172.71,172.67,13.71630089]
[1752685267718,198.58727248,172.71,172.67,13.71630089]
[1752685268025,15.31609431,172.68,172.67,13.71630089]
[1752685268918,8.1784,172.68,172.67,13.71630089]
[1752685270228,21.09622586,172.68,172.67,13.71630089]
[1752685270427,8.1784,172.68,172.67,13.71630089]
[1752685270622,21.09622586,172.68,172.67,13.71630089]
[1752685271025,21.09598128,172.68,172.67,13.71630089]
[1752685271727,206.37598128,172.68,172.67,13.71630089]
[1752685272830,206.29598128,172.68,172.67,13.71630089]
[1752685273029,193.3784,172.68,172.67,13.71630089]
[1752685273320,8.1787,172.67,172.66,6.975e-05]
[1752685273730,5.7887,172.67,172.66,3.18006975]
[1752685273920,193.1687,172.67,172.66,3.18006975]
[1752685275024,193.1687,172.67,172.66,6.975e-05]
[1752685276023,206.85807804,172.67,172.66,6.975e-05]
[1752685276424,194.3087,172.67,172.66,6.975e-05]
[1752685276632,206.85807804,172.67,172.66,6.975e-05]
[1752685276833,194.3087,172.67,172.66,6.975e-05]
[1752685277428,201.43430197,172.67,172.64,0.35898362]
[1752685277625,3.12,172.65,172.64,0.35898362]
[1752685278025,8.9094,172.65,172.64,0.35898362]
[1752685279336,210.68370197,172.65,172.64,0.35898362]
[1752685279533,197.7694,172.65,172.64,0.35898362]
[1752685280039,210.68268634,172.65,172.64,0.35898362]
[1752685281833,8.9104,172.62,172.61,2.964e-05]
[1752685282040,222.78996192,172.62,172.61,2.964e-05]
[1752685282331,209.87977804,172.62,172.61,2.964e-05]
[1752685282538,8.9111,172.6,172.59,57.82]
[1752685282734,197.4511,172.6,172.59,57.82]
[1752685282938,8.9111,172.6,172.59,43.34]
[1752685283132,197.5111,172.6,172.59,43.34]
[1752685283329,197.5111,172.6,172.59,31.1453]
[1752685283527,5.7914,172.59,172.57,14.48]
[1752685283838,18.34077804,172.59,172.57,14.48]
[1752685284435,5.7918,172.58,172.57,14.48]
[1752685284642,194.5118,172.58,172.57,14.48]
[1752685285435,5.7924,172.56,172.55,4.46e-05]
[1752685285736,201.18937804,172.56,172.54,39.55]
[1752685286133,5.7928,172.55,172.54,39.55]
[1752685286529,500.36089692,172.57,172.54,42.97]
[1752685286732,188.4,172.56,172.55,3.42]
[1752685287437,7.52092281,172.64,172.55,3.42]
[1752685287739,500.42,172.65,172.54,47.07092281]
[1752685287740,194.2303,172.63,172.57,5.7921]
[1752685287943,507.94092281,172.65,172.58,3.42]
[1752685288239,188.34,172.64,172.58,3.42]
[1752685289228,188.16,172.63,172.58,10.94092281]
[1752685289439,188.16,172.63,172.61,3.42]
[1752685290934,7.52092281,172.7,172.61,3.42]
[1752685291141,500.38,172.73,172.63,3.42]
[1752685291335,5.7887,172.68,172.63,3.42]
[1752685291537,7.52092281,172.72,172.63,3.42]
[1752685291741,188.12,172.71,172.63,3.42]
[1752685292640,5.7891,172.67,172.63,3.42]
[1752685292843,500.38,172.73,172.67,3.42]
[1752685293141,188.12,172.72,172.67,3.42]
[1752685293533,193.9072,172.72,172.67,3.42]
[1752685294254,188.12,172.72,172.67,5.7886]
[1752685294440,188.12,172.72,172.68,3.42]
[1752685294739,193.9074,172.72,172.68,3.42]
[1752685295244,5.7874,172.71,172.68,3.42]
[1752685295645,188.12,172.72,172.68,3.42]
[1752685295837,193.9072,172.72,172.68,3.42]
[1752685296546,188.12,172.72,172.68,3.42]
[1752685297536,500.38,172.73,172.68,3.42]
[1752685297742,187.64,172.71,172.68,3.42]
[1752685298734,187.64,172.71,172.56,250.5846]
[1752685298943,187.64,172.71,172.66,3.42]
[1752685299247,187.64,172.71,172.65,12.54611987]
[1752685299248,500.38,172.73,172.69,3.42]
[1752685299441,187.5,172.72,172.69,3.42]
[1752685299646,187.58,172.72,172.69,3.42]
[1752685299943,187.58,172.72,172.7,3.42]
[1752685300443,525.67630375,172.81,172.71,3.42]
[1752685300645,187.56,172.8,172.71,3.42]
[1752685300846,187.56,172.8,172.71,9.2073]
[1752685301350,5.7857,172.77,172.72,3.42]
[1752685301539,187.74,172.76,172.72,3.42]
[1752685301843,187.64,172.76,172.72,3.42]
[1752685302039,187.64,172.76,172.73,12.54611987]
[1752685302340,187.52,172.78,172.74,3.42]
[1752685302534,187.52,172.77,172.74,9.2061]
[1752685302735,187.52,172.77,172.61,250.5812]
[1752685302935,187.52,172.77,172.71,3.42]
[1752685303140,187.52,172.77,172.74,3.42]
[1752685303339,187.44,172.76,172.74,3.42]
[1752685303741,187.44,172.76,172.74,9.2062]
[1752685304044,187.44,172.76,172.75,3.42]
[1752685304445,187.44,172.76,172.75,9.2061]
[1752685304646,187.44,172.76,172.75,3.42]
[1752685305545,187.44,172.76,172.68,3.42]
[1752685305946,187.44,172.76,172.71,5.7874]
[1752685306151,187.44,172.76,172.72,3.42]
[1752685306349,187.12,172.75,172.72,3.42]
[1752685306742,187.12,172.75,172.61,250.5812]
[1752685307052,187.12,172.75,172.74,3.33]
[1752685308149,187.12,172.75,172.69,3.33]
[1752685309753,5.7866,172.74,172.7,3.33]
[1752685310149,187.12,172.75,172.68,3.33]
[1752685311246,192.9061,172.75,172.68,9.1183]
[1752685311453,192.9061,172.75,172.69,3.33]
[1752685312543,192.9061,172.75,172.7,3.33]
[1752685312544,5.7868,172.73,172.7,3.33]
[1752685312948,187.12,172.75,172.69,3.33]
[1752685313347,5.7865,172.74,172.69,3.33]
[1752685313646,12.91018388,172.8,172.69,3.33]
[1752685313855,186.22,172.79,172.69,3.33]
[1752685314448,186.22,172.79,172.72,3.33]
[1752685315153,185.98,172.78,172.75,3.33]
[1752685316247,185.98,172.78,172.75,9.1159]
[1752685316448,185.98,172.78,172.75,3.33]
[1752685316753,500.22,172.81,172.76,5.7857]
[1752685317049,185.96,172.8,172.77,3.33]
[1752685317552,185.96,172.8,172.77,10.82875525]
[1752685317749,185.82,172.83,172.79,7.49875525]
[1752685318056,185.82,172.83,172.8,3.33]
[1752685318846,185.82,172.83,172.81,3.33]
[1752685319047,185.82,172.83,172.82,3.33]
[1752685319352,185.82,172.83,172.76,3.33]
[1752685319554,185.82,172.83,172.77,5.7854]
[1752685319747,191.6037,172.83,172.78,3.33]
[1752685320255,185.82,172.83,172.78,3.33]
[1752685321151,191.6035,172.83,172.78,3.33]
[1752685321653,185.82,172.83,172.78,3.33]
[1752685322258,185.82,172.83,172.78,9.115]
[1752685322454,185.82,172.83,172.79,3.33]
[1752685322657,185.82,172.83,172.76,7.49875525]
[1752685322855,185.82,172.83,172.77,9.1152]
[1752685323156,500.02,172.89,172.77,9.1152]
[1752685323157,500.02,172.89,172.83,3.33]
[1752685323357,685.0,172.89,172.83,3.33]
[1752685323561,685.0,172.89,172.83,9.1132]
[1752685324056,500.02,172.89,172.83,3.33]
[1752685324265,184.82,172.89,172.83,3.33]
[1752685324453,507.57997114,172.97,172.87,3.33]
[1752685324656,184.78,172.96,172.88,3.33]
[1752685324853,7.49875525,172.93,172.88,3.33]
[1752685325051,184.74,172.92,172.88,3.33]
[1752685325253,5.7813,172.9,172.83,5.7833]
[1752685325561,7.49875525,172.91,172.87,3.33]
[1752685325858,184.6,172.91,172.84,3.33]
[1752685326860,5.7813,172.9,172.84,3.33]
[1752685327062,184.6,172.91,172.84,3.33]
[1752685327756,500.08121589,172.97,172.82,3.33]
[1752685327960,7.49875525,172.92,172.82,3.33]
[1752685328155,184.3,172.91,172.82,3.33]
[1752685328363,184.26,172.9,172.85,5.7827]
[1752685328561,184.26,172.9,172.86,3.33]
[1752685329065,507.57997114,172.97,172.89,3.33]
[1752685329249,184.12,172.96,172.89,3.33]
[1752685329454,184.12,172.96,172.88,5.7815]
[1752685329455,5.7799,172.94,172.88,5.7815]
[1752685329660,184.12,172.96,172.89,3.33]
[1752685329861,500.08121589,172.97,172.89,3.33]
[1752685330056,184.04,172.95,172.92,3.33]
[1752685330360,184.04,172.95,172.94,3.33]
[1752685331059,184.04,172.95,172.88,3.33]
[1752685331262,7.49875525,172.94,172.86,3.33]
[1752685331464,7.49875525,172.92,172.86,3.33]
[1752685331861,5.7813,172.9,172.82,7.49875525]
[1752685332066,183.76,172.89,172.83,3.33]
[1752685332869,183.76,172.89,172.84,3.33]
[1752685333568,183.76,172.89,172.87,3.33]
[1752685333761,5.782,172.88,172.81,5.784]
[1752685333962,183.76,172.89,172.86,3.33]
[1752685334361,5.7819,172.88,172.86,3.33]
[1752685335164,183.76,172.89,172.86,3.33]
[1752685335365,189.5414,172.89,172.87,3.33]
[1752685335969,189.67123693,172.89,172.87,3.33]
[1752685336659,5.7817,172.88,172.85,3.15]
[1752685336867,183.88983693,172.89,172.76,3.15]
[1752685336868,7.49875525,172.87,172.76,3.15]
[1752685337069,183.88983693,172.89,172.76,3.15]
[1752685337070,7.49875525,172.84,172.77,5.7852]
[1752685337272,183.38,172.83,172.79,3.15]
[1752685337467,183.38,172.83,172.8,3.15]
[1752685337773,7.49875525,172.82,172.73,3.15]
[1752685337973,7.49875525,172.8,172.73,3.15]
[1752685338172,13.28335525,172.8,172.73,8.9365]
[1752685338376,7.49875525,172.8,172.74,3.15]
[1752685338767,499.6,172.86,172.74,3.15]
[1752685339062,190.81875525,172.85,172.76,3.15]
[1752685339270,5.784,172.82,172.76,3.15]
[1752685340071,5.784,172.82,172.78,3.15]
[1752685340272,5.7836,172.83,172.78,3.15]
[1752685340469,190.81875525,172.85,172.78,3.15]
[1752685340769,5.7833,172.84,172.78,5.785]
[1752685340969,190.81875525,172.85,172.78,3.15]
[1752685341771,5.7836,172.83,172.78,3.15]
[1752685342078,7.49875525,172.83,172.79,3.15]
[1752685342475,7.49875525,172.83,172.77,40.51]
[1752685342775,7.49875525,172.83,172.78,3.15]
[1752685343076,7.49875525,172.83,172.79,3.15]
[1752685343273,7.49875525,172.83,172.78,14.46]
[1752685343478,7.49875525,172.79,172.78,14.46]
[1752685343673,190.51875525,172.79,172.78,14.46]
[1752685343878,183.02,172.79,172.78,17.61]
[1752685344172,7.49875525,172.85,172.78,17.61]
[1752685344368,499.6,172.86,172.79,3.15]
[1752685344570,182.94,172.85,172.79,3.15]
[1752685344880,0.12983693,172.89,172.82,7.49875525]
[1752685345175,0.12983693,172.89,172.86,3.15]
[1752685346369,0.12983693,172.89,172.85,3.15]
[1752685346674,0.12983693,172.89,172.85,5.7825]
[1752685346971,0.12983693,172.89,172.84,7.49875525]
[1752685347187,0.12983693,172.89,172.88,3.15]
[1752685349566,13.06089025,172.96,172.88,10.64875525]
[1752685349767,5.96518534,172.96,172.92,3.15]
[1752685349973,0.18608534,172.96,172.9,3.15]
[1752685350181,0.12,172.95,172.87,7.49875525]
[1752685350480,0.12,172.95,172.88,3.15]
[1752685350676,13.06089025,172.96,172.88,3.15]
[1752685350885,0.18608534,172.96,172.88,3.15]
[1752685351178,186.1,172.95,172.91,3.15]
[1752685351377,0.12,172.94,172.9,0.03986375]
[1752685351582,0.12,172.92,172.9,0.03986375]
[1752685351876,0.12,172.91,172.9,0.03986375]
[1752685352283,5.7804,172.92,172.9,0.03986375]
[1752685352678,0.12,172.92,172.9,0.03986375]
[1752685352879,5.9007,172.92,172.9,0.03986375]
[1752685353387,0.12,172.94,172.91,3.15]
[1752685353683,0.12,172.92,172.9,0.03986375]
[1752685353883,0.12,172.91,172.9,0.03986375]
[1752685354074,0.12,172.9,172.86,3.15]
[1752685354277,186.4,172.89,172.87,3.15]
[1752685355079,186.52,172.89,172.85,3.15]
[1752685355288,186.52,172.89,172.86,3.15]
[1752685355680,186.4,172.89,172.87,3.15]
[1752685356088,192.1815,172.89,172.87,3.15]
[1752685356283,186.4,172.89,172.87,3.15]
[1752685356781,186.4,172.89,172.88,3.15]
[1752685357483,186.2,172.93,172.88,3.15]
[1752685357684,191.9801,172.93,172.88,3.15]
[1752685357885,186.2,172.93,172.88,3.15]
[1752685358279,186.2,172.93,172.9,3.15]
[1752685358479,186.2,172.93,172.91,3.15]
[1752685358781,186.2,172.93,172.92,3.15]
[1752685358980,191.9801,172.93,172.92,3.15]
[1752685359384,188.63,172.93,172.9,0.03727533]
[1752685359574,186.2,172.93,172.9,0.03727533]
[1752685359779,2.43,172.92,172.9,0.03727533]
[1752685360089,191.9803,172.93,172.9,0.03727533]
[1752685360482,194.4103,172.93,172.9,0.03727533]
[1752685360982,186.2,172.93,172.9,0.03727533]
[1752685361377,186.2,172.93,172.91,3.15]
[1752685361783,186.2,172.93,172.92,3.15]
[1752685362287,5.7804,172.92,172.91,3.15]
[1752685362490,186.2,172.93,172.92,3.15]
[1752685363187,186.2,172.93,172.9,0.03727533]
[1752685363485,15.70945525,172.91,172.9,7.533e-05]
[1752685363682,2.43,172.9,172.83,37.95]
[1752685363883,7.49875525,172.89,172.83,37.95]
[1752685364089,9.92875525,172.87,172.83,34.8]
[1752685364292,5.7831,172.84,172.83,34.8]
[1752685364482,499.5,172.93,172.83,34.8]
[1752685364483,185.32,172.89,172.84,3.15]
[1752685364680,187.75,172.89,172.83,42.29875525]
[1752685364992,0.042141,172.88,172.85,3.15]
[1752685365178,2.43,172.87,172.83,34.8]
[1752685365382,2.43,172.87,172.84,3.15]
[1752685365697,2.472141,172.88,172.85,3.15]
[1752685366387,2.472141,172.88,172.84,3.15]
[1752685366388,0.042141,172.88,172.84,3.15]
[1752685367385,0.042141,172.88,172.87,3.17]
[1752685367585,2.472141,172.88,172.85,3.17]
[1752685367891,2.43,172.87,172.85,3.17]
[1752685368089,0.042141,172.88,172.85,3.17]
[1752685368395,0.042141,172.88,172.87,3.17]
[1752685368593,7.54089625,172.88,172.83,34.8]
[1752685368787,5.7825,172.86,172.83,34.8]
[1752685368986,2.43,172.84,172.83,34.8]
[1752685369297,187.06,172.85,172.83,34.8]
[1752685369489,187.06,172.85,172.84,3.17]
[1752685370887,2.43,172.84,172.83,34.8]
[1752685371788,9.92875525,172.84,172.83,34.8]
[1752685372291,15.71185525,172.84,172.83,34.8]
[1752685372894,2.43,172.81,172.8,14.46]
[1752685373091,190.45,172.81,172.8,14.46]
[1752685373284,188.02,172.81,172.8,17.63]
[1752685373686,200.94880801,172.81,172.8,17.63]
[1752685374294,12.92880801,172.81,172.8,17.63]
[1752685374592,0.04450513,172.82,172.8,14.46]
[1752685375090,0.04450513,172.82,172.81,3.17]
[1752685375296,187.9208303,172.85,172.81,3.17]
[1752685375588,0.0608303,172.85,172.84,8.9531]
[1752685375783,0.0608303,172.85,172.84,3.17]
[1752685376393,0.0608303,172.85,172.84,8.9531]
[1752685377084,0.0608303,172.85,172.84,3.17]
[1752685377491,188.6,172.88,172.86,3.17]
[1752685377785,188.6,172.88,172.87,3.17]
[1752685377991,191.09,172.88,172.84,3.17]
[1752685378194,12.92493672,172.86,172.85,3.17]
[1752685378586,201.52493672,172.88,172.86,3.17]
[1752685378787,201.52493672,172.88,172.8,14.46]
[1752685378788,201.52493672,172.88,172.87,3.17]
[1752685379082,201.52493672,172.88,172.84,3.17]
[1752685379891,207.30693672,172.88,172.83,5.7831]
[1752685380098,207.30693672,172.88,172.84,3.17]
[1752685380289,207.30693672,172.88,172.83,5.7831]
[1752685380290,207.30693672,172.88,172.86,3.17]
[1752685380891,201.52493672,172.88,172.84,5.783]
[1752685381094,201.52493672,172.88,172.81,7.49875525]
[1752685381095,188.6,172.88,172.87,3.17]
[1752685381285,188.6,172.88,172.87,0.86321831]
[1752685381495,12.92493672,172.9,172.8,253.46]
[1752685381697,2.49,172.92,172.82,7.49875525]
[1752685381698,203.38493672,172.89,172.82,7.49875525]
[1752685381995,206.81493672,172.89,172.85,5.7826]
[1752685382200,3.43,172.88,172.82,239.0]
[1752685382400,203.38493672,172.89,172.85,0.04061705]
[1752685382401,16.35493672,172.87,172.85,0.04061705]
[1752685382792,12.92493672,172.88,172.85,0.04061705]
[1752685383101,203.42856229,172.89,172.85,5.82311705]
[1752685383393,203.42856229,172.89,172.85,0.04061705]
[1752685383603,203.42856229,172.89,172.88,3.17]
[1752685383789,190.50362557,172.89,172.88,3.17]
[1752685384200,203.42856229,172.89,172.88,3.17]
[1752685385498,190.50362557,172.89,172.88,3.17]
[1752685385799,203.42856229,172.89,172.88,3.17]
[1752685386793,190.50362557,172.89,172.88,3.17]
[1752685387201,499.5,172.93,172.88,3.17]
[1752685387400,194.13,172.92,172.88,3.17]
[1752685387595,190.7,172.92,172.8,21.95875525]
[1752685387794,3.43,172.9,172.88,3.17]
[1752685387994,194.07,172.89,172.86,3.17]
[1752685388202,194.03,172.89,172.87,3.17]
[1752685388704,3.43,172.88,172.86,0.04326659]
[1752685389002,3.43,172.87,172.86,0.04326659]
[1752685389503,3.43,172.92,172.86,3.21326659]
[1752685389701,3.43,172.9,172.86,3.21326659]
[1752685389898,3.43,172.9,172.86,0.04326659]
[1752685390204,3.43,172.9,172.88,3.17]
[1752685391100,3.43,172.89,172.86,8.99566659]
[1752685391299,3.43,172.89,172.87,3.17]
[1752685391504,190.4,172.88,172.86,0.04326659]
[1752685391710,193.83,172.88,172.86,3.21326659]
[1752685392408,3.43,172.87,172.86,0.04326659]
[1752685393710,9.2121,172.87,172.86,0.04326659]
[1752685394907,3.43,172.85,172.79,3.17]
[1752685395204,12.94861042,172.8,172.73,405.83090036]
[1752685395410,190.02,172.79,172.78,80.67]
[1752685395804,193.45,172.79,172.74,3.17]
[1752685396013,193.45,172.79,172.7,7.49875525]
[1752685396014,193.45,172.79,172.71,3.17]
[1752685396208,193.45,172.79,172.72,7.49875525]
[1752685396409,3.43,172.78,172.75,3.17]
[1752685396611,3.43,172.78,172.76,3.2]
[1752685396805,3.23,172.77,172.74,3.2]
[1752685397115,7.49875525,172.77,172.7,3.2]
[1752685397313,3.23,172.76,172.7,3.2]
[1752685397509,193.79,172.75,172.7,3.2]
[1752685398013,3.23,172.74,172.72,3.2]
[1752685398513,3.23,172.73,172.72,3.2]
[1752685398809,3.23,172.74,172.68,10.77]
[1752685399015,3.23,172.69,172.68,10.77]
[1752685399218,193.51,172.69,172.68,7.57]
[1752685399913,7.49875525,172.71,172.68,7.57]
[1752685399914,5.7866,172.74,172.69,5.7881]
[1752685400105,5.7866,172.74,172.68,10.77]
[1752685400106,190.44,172.72,172.71,3.2]
[1752685401715,190.2,172.74,172.69,3.2]
[1752685402315,190.2,172.74,172.72,3.2]
[1752685402516,190.2,172.74,172.73,3.2]
[1752685402817,190.0,172.74,172.73,3.2]
[1752685403504,3.23,172.82,172.73,3.2]
[1752685403709,3.23,172.8,172.73,3.2]
[1752685403908,3.23,172.78,172.73,3.2]
[1752685404122,3.23,172.76,172.73,3.2]
[1752685404308,189.78,172.77,172.7,7.49875525]
[1752685404505,3.23,172.75,172.73,3.2]
[1752685405419,193.01,172.77,172.72,7.49875525]
[1752685405714,193.01,172.77,172.74,3.2]
[1752685406020,193.01,172.77,172.76,3.2]
[1752685406718,189.78,172.77,172.76,3.2]
[1752685406917,499.78,172.83,172.76,8.9856]
[1752685406918,0.04023974,172.78,172.76,8.9856]
[1752685407230,0.04023974,172.78,172.77,3.2]
[1752685407406,0.04023974,172.78,172.77,8.9855]
[1752685407906,190.64,172.82,172.77,3.2]
[1752685408109,190.64,172.82,172.79,7.49875525]
[1752685408304,190.64,172.82,172.8,3.2]
[1752685408508,199.6539,172.82,172.8,3.2]
[1752685409019,3.23,172.81,172.75,7.49875525]
[1752685409219,3.23,172.8,172.79,0.03892217]
[1752685409611,5.7841,172.81,172.79,0.03892217]
[1752685409816,9.0141,172.81,172.79,3.23892217]
[1752685410019,196.4238,172.82,172.8,3.2]
[1752685410212,199.6538,172.82,172.8,3.2]
[1752685410715,193.87,172.82,172.8,3.2]
[1752685410915,193.87,172.82,172.81,3.2]
[1752685410916,190.26,172.82,172.81,3.2]
[1752685411118,190.26,172.82,172.79,7.53767742]
[1752685411119,3.23,172.86,172.82,3.2]
[1752685411313,193.49,172.85,172.83,3.2]
[1752685411516,193.49,172.85,172.84,3.2]
[1752685411827,3.23,172.84,172.83,3.2]
[1752685412024,3.23,172.84,172.82,3.2434906]
[1752685412615,190.26,172.85,172.82,0.0434906]
[1752685412821,3.23,172.83,172.82,0.0434906]
[1752685413010,3.23,172.83,172.82,3.2434906]
[1752685413216,189.96,172.84,172.83,1.08654941]
[1752685413524,189.96,172.84,172.83,4.28654941]
[1752685413719,193.19,172.84,172.83,1.08654941]
[1752685413915,9.0131,172.84,172.83,1.08654941]
[1752685414422,198.6531,172.84,172.83,1.08654941]
[1752685415715,9.0134,172.83,172.78,3.2]
[1752685415918,189.28,172.82,172.79,3.2]
[1752685416612,189.2,172.82,172.79,3.2]
[1752685417122,189.2,172.82,172.81,3.2]
[1752685417313,5.7832,172.84,172.79,3.2]
[1752685417513,5.7832,172.84,172.78,7.49875525]
[1752685417514,189.04,172.83,172.81,3.2]
[1752685417810,189.04,172.83,172.82,3.2]
[1752685418317,188.96,172.84,172.83,3.2]
[1752685419422,194.7431,172.84,172.83,3.2]
[1752685420015,3.23,172.82,172.77,1.18042015]
[1752685420210,3.23,172.8,172.78,3.2]
[1752685420420,191.97,172.82,172.8,3.2]
[1752685420718,191.97,172.82,172.77,1.18042015]
[1752685420719,191.97,172.82,172.81,3.2]
[1752685421225,191.81,172.82,172.81,3.2]
[1752685421624,197.5938,172.82,172.81,3.2]
[1752685421820,3.23,172.81,172.78,3.2]
[1752685422015,9.0142,172.81,172.78,3.2]
[1752685422228,9.0142,172.81,172.79,3.2]
[1752685422524,3.23,172.79,172.77,1.18042015]
[1752685422722,3.23,172.79,172.77,4.38042015]
[1752685422928,188.32,172.78,172.77,4.38042015]
[1752685423329,191.55,172.78,172.77,1.18042015]
[1752685423928,188.32,172.78,172.77,4.38042015]
[1752685424430,188.32,172.78,172.77,10.16582015]
[1752685424627,16.1161653,172.85,172.78,3.2]
[1752685424834,187.94,172.84,172.8,3.2]
[1752685425026,187.94,172.84,172.79,7.49875525]
[1752685425222,187.94,172.84,172.82,3.2]
[1752685425630,3.23,172.88,172.85,3.2]
[1752685425928,187.9,172.87,172.86,3.2]
[1752685426123,187.9,172.87,172.86,8.9824]
[1752685426321,187.84,172.89,172.88,3.2]
[1752685426522,191.07,172.89,172.86,3.2]
[1752685426722,191.07,172.89,172.87,3.13]
[1752685426930,191.07,172.89,172.88,3.13]
[1752685428029,187.84,172.89,172.88,3.13]
[1752685429731,191.02,172.89,172.88,3.13]
[1752685429937,3.18,172.88,172.86,3.13]
[1752685430334,187.84,172.89,172.86,3.13]
[1752685430538,3.18,172.87,172.85,3.13]
[1752685430743,187.16,172.86,172.85,3.13]
[1752685430940,3.18,172.85,172.83,3.13]
[1752685431238,3.18,172.84,172.83,3.13]
[1752685431741,192.9427,172.86,172.83,3.13]
[1752685431940,3.18,172.85,172.83,3.13]
[1752685432448,187.16,172.86,172.84,3.13]
[1752685433250,187.16,172.86,172.85,5.7828]
[1752685433437,187.16,172.86,172.85,8.9128]
[1752685433637,187.16,172.86,172.85,3.13]
[1752685434432,190.34,172.86,172.84,3.13]
[1752685434634,190.34,172.86,172.79,239.0]
[1752685434635,187.16,172.86,172.8,3.13]
[1752685434944,3.18,172.85,172.8,3.13]
[1752685435148,3.18,172.85,172.79,10.62875525]
[1752685435335,5.784,172.82,172.79,3.13]
[1752685435536,186.48,172.81,172.8,3.13]
[1752685437344,186.24,172.84,172.8,3.13]
[1752685437746,16.0661653,172.89,172.83,16.41215525]
[1752685437955,189.38,172.88,172.85,3.13]
[1752685438244,189.38,172.88,172.86,3.13]
[1752685438446,195.162,172.88,172.86,3.13]
[1752685439347,189.38,172.88,172.86,3.13]